fUST/lending_fUST_20250806
["ID","MTS","AMOUNT","RATE_DAILY","PERIOD"]
[377687825,1754491847008,-151.0,0.00028835,7]
[377687827,1754491847017,-153.594947,0.00028835,7]
[377687828,1754491847027,-151.0,0.00028835,7]
[377687830,1754491847036,-151.0,0.00028835,7]
[377687832,1754491847046,-151.0,0.00028835,7]
[377687834,1754491847057,-262.247174,0.00028835,7]
[377687835,1754491847066,-911.949506,0.00028835,7]
[377687837,1754491847076,-911.949506,0.00028835,7]
[377687839,1754491847089,-151.0,0.00028964,7]
[377687840,1754491847100,-151.0,0.00028964,7]
[377687842,1754491847110,-151.0,0.00028964,7]
[377687844,1754491847120,-151.0,0.00028964,7]
[377687846,1754491847131,-229.459966,0.00028964,7]
[377687847,1754491847140,-3841.76,0.00029,7]
[377687849,1754491847151,-210.159744,0.00029,2]
[377687851,1754491847160,-312.16666667,0.00029,10]
[377687853,1754491847170,-216.47163855,0.00029,10]
[377687854,1754491847180,-527.46908335,0.00029,10]
[377687856,1754491847189,-527.46908335,0.00029,10]
[377687858,1754491847199,-231.78005385,0.00029,10]
[377687860,1754491847208,-231.78005385,0.00029,3]
[377687862,1754491847218,-231.78005385,0.00029,10]
[377687863,1754491847227,-160.0,0.00029,10]
[377687865,1754491847237,-2021.12329151,0.0002906,5]
[377687867,1754491847247,-500.0,0.0002906,5]
[377687869,1754491847257,-3500.0,0.0002926,5]
[377687870,1754491847267,-3500.0,0.0002926,5]
[377687872,1754491847278,-3500.0,0.0002926,5]
[377687874,1754491847288,-800.0,0.00029273,2]
[377687876,1754491847297,-660.0,0.00029313,2]
[377687878,1754491847307,-800.0,0.00029392,2]
[377687879,1754491847317,-9078.83,0.000294,7]
[377687881,1754491847327,-4546.94981979,0.00029402,2]
[377687883,1754491847341,-191.723131,0.00029405,2]
[377687884,1754491847350,-286.630323,0.00029418,7]
[377687886,1754491847360,-312.756533,0.00029418,7]
[377687888,1754491847370,-312.756533,0.00029418,7]
[377687890,1754491847379,-151.0,0.00029418,7]
[377687892,1754491847389,-151.0,0.00029418,7]
[377687893,1754491847399,-165.47,0.00029447,30]
[377687895,1754491847408,-151.0,0.00029512,7]
[377687897,1754491847418,-151.0,0.00029512,7]
[377687899,1754491847427,-151.0,0.00029512,7]
[377687900,1754491847437,-522.34373139,0.00029573,2]
[377687901,1754491847446,-151.0,0.00029708,7]
[377687903,1754491847455,-151.0,0.00029708,7]
[377687904,1754491847464,-151.0,0.00029708,7]
[377687906,1754491847474,-151.0,0.00029708,7]
[377687908,1754491847484,-248.819274,0.00029708,7]
[377687910,1754491847494,-248.819274,0.00029708,7]
[377687911,1754491847505,-4000.0,0.00029808,5]
[377687913,1754491847514,-4000.0,0.00029808,5]
[377687915,1754491847524,-412.49617764,0.00029808,5]
[377687917,1754491847533,-800.0,0.00029818,2]
[377687918,1754491847543,-275.37429,0.00029835,7]
[377687920,1754491847552,-151.0,0.00029835,7]
[377687922,1754491847562,-151.0,0.00029835,7]
[377687924,1754491847572,-151.0,0.00029835,7]
[377687926,1754491847587,-151.0,0.00029835,7]
[377687927,1754491847597,-151.0,0.00029835,7]
[377687929,1754491847608,-242.169411,0.00029835,7]
[377687931,1754491847617,-700.067813,0.00029835,7]
[377687933,1754491847627,-151.0,0.00029835,7]
[377687935,1754491847637,-700.067813,0.00029835,7]
[377687936,1754491847647,-151.0,0.00029835,7]
[377687938,1754491847657,-151.0,0.00029835,7]
[377687940,1754491847667,-151.0,0.00029835,7]
[377687942,1754491847677,-151.0,0.00029835,7]
[377687950,1754491847780,-151.0,0.00029835,7]
[377687952,1754491847792,-151.0,0.00029835,7]
[377687954,1754491847804,-911.949506,0.00029835,7]
[377687956,1754491847815,-911.949506,0.00029835,7]
[377687958,1754491847825,-376.364792,0.00029835,7]
[377687960,1754491847838,-376.364792,0.00029835,7]
[377687961,1754491847848,-151.0,0.00029835,7]
[377687963,1754491847859,-189.257479,0.00029835,7]
[377687965,1754491847869,-189.257479,0.00029835,7]
[377687967,1754491847879,-151.0,0.00029835,7]
[377687969,1754491847888,-1216.98,0.00029835,2]
[377687971,1754491847899,-1216.98,0.00029835,2]
[377687973,1754491847909,-1216.98,0.00029835,2]
[377687974,1754491847918,-1216.98,0.00029835,2]
[377687976,1754491847928,-1216.98,0.00029835,2]
[377687978,1754491847938,-1216.98,0.00029835,2]
[377687980,1754491847948,-1216.98,0.00029835,2]
[377687981,1754491847958,-1216.98,0.00029835,2]
[377687983,1754491847971,-1216.98,0.00029835,2]
[377687985,1754491847981,-1216.98,0.00029835,2]
[377687987,1754491847991,-1216.98,0.00029835,2]
[377687989,1754491848001,-1216.98,0.00029835,2]
[377687991,1754491848016,-1216.98,0.00029835,2]
[377687993,1754491848026,-1216.98,0.00029835,2]
[377687994,1754491848037,-1216.98,0.00029835,2]
[377687996,1754491848048,-1216.98,0.00029835,2]
[377687998,1754491848059,-1216.98,0.00029835,2]
[377688000,1754491848069,-1216.98,0.00029835,2]
[377688001,1754491848081,-1216.98,0.00029835,2]
[377688003,1754491848091,-1216.98,0.00029835,2]
[377688005,1754491848100,-1216.98,0.00029835,2]
[377688007,1754491848110,-1216.98,0.00029835,2]
[377688009,1754491848120,-1216.98,0.00029835,2]
[377688011,1754491848130,-1217.03998087,0.00029835,2]
[377688012,1754491848140,-151.0,0.00029835,7]
[377688014,1754491848150,-760.0,0.00029861,2]
[377688016,1754491848160,-151.0,0.0002998,2]
[377688018,1754491848170,-1000.0,0.0003,2]
[377688020,1754491848180,-1000.0,0.0003,2]
[377688021,1754491848189,-1000.0,0.0003,2]
[377688023,1754491848199,-1000.0,0.0003,2]
[377688025,1754491848209,-1021.54,0.0003,2]
[377688027,1754491848219,-1437.374485,0.0003,8]
[377688028,1754491848228,-160.0,0.0003,10]
[377688030,1754491848238,-547.72582638,0.0003,4]
[377688032,1754491848248,-2240.37,0.000301,7]
[377688034,1754491848257,-144998.00000004,0.0003013,2]
[377688036,1754491848268,-151.0,0.0003013,7]
[377688038,1754491848278,-151.0,0.0003013,7]
[377688040,1754491848289,-219.369171,0.0003013,7]
[377688041,1754491848299,-151.0,0.0003013,7]
[377688042,1754491848309,-157.889156,0.0003013,7]
[377688043,1754491848319,-151.0,0.0003013,7]
[377688044,1754491848330,-151.0,0.0003013,7]
[377688045,1754491848340,-151.0,0.0003013,7]
[377688046,1754491848350,-151.0,0.0003013,7]
[377688047,1754491848360,-376.364792,0.0003013,7]
[377688048,1754491848371,-376.364795,0.0003013,7]
[377688049,1754491848381,-151.0,0.0003013,7]
[377688050,1754491848391,-189.257479,0.0003013,7]
[377688051,1754491848402,-248.819274,0.0003013,7]
[377688052,1754491848412,-189.257482,0.0003013,7]
[377688053,1754491848422,-151.0,0.0003013,7]
[377688054,1754491848431,-248.819274,0.0003013,7]
[377688055,1754491848441,-151.0,0.0003013,7]
[377688056,1754491848451,-54631.2322769,0.00030137,2]
[377688057,1754491848461,-150.0,0.00030137,3]
[377688058,1754491848471,-500.0,0.00030137,60]
[377688059,1754491848480,-500.0,0.00030137,60]
[377688060,1754491848490,-152.25687359,0.00030137,60]
[377688061,1754491848501,-500.0,0.00030137,60]
[377688062,1754491848510,-151.0,0.00030137,60]
[377688063,1754491848520,-151.0,0.00030137,60]
[377688064,1754491848530,-151.0,0.00030137,60]
[377688065,1754491848541,-151.0,0.00030137,60]
[377688066,1754491848550,-500.0,0.00030137,60]
[377688067,1754491848560,-151.0,0.00030137,60]
[377688068,1754491848570,-500.0,0.00030137,60]
[377688069,1754491848582,-500.0,0.00030137,60]
[377688070,1754491848591,-152.26540486,0.00030137,60]
[377688071,1754491848602,-500.0,0.00030137,60]
[377688072,1754491848612,-500.0,0.00030137,60]
[377688073,1754491848621,-151.0,0.00030137,60]
[377688074,1754491848632,-152.08480537,0.00030137,60]
[377688075,1754491848642,-268.99295525,0.00030137,60]
[377688076,1754491848652,-500.0,0.00030137,60]
[377688077,1754491848661,-151.0,0.00030137,2]
[377688078,1754491848671,-151.0,0.00030137,60]
[377688079,1754491848681,-516.0,0.00030137,2]
[377688080,1754491848691,-500.0,0.00030137,2]
[377688081,1754491848701,-151.0,0.00030137,2]
[377688082,1754491848711,-500.0,0.00030137,60]
[377688083,1754491848721,-500.0,0.00030137,60]
[377688084,1754491848735,-151.0,0.00030137,2]
[377688085,1754491848752,-500.0,0.00030137,60]
[377688086,1754491848768,-151.0,0.00030137,60]
[377688087,1754491848782,-151.0,0.00030168,7]
[377688088,1754491848797,-201.93691006,0.00030173,5]
[377688089,1754491848811,-800.0,0.00030186,2]
[377688090,1754491848825,-587.0,0.00030198,2]
[377688091,1754491848842,-151.0,0.000302,15]
[377688092,1754491848858,-3798.13,0.000302,2]
[377688093,1754491848877,-4565.96306894,0.00030356,5]
[377688094,1754491848891,-4500.0,0.00030356,5]
[377688095,1754491848905,-800.0,0.00030377,2]
[377688096,1754491848918,-165.47,0.00030383,30]
[377688097,1754491848933,-860.0,0.00030409,2]
[377688098,1754491848948,-500.0,0.00030411,60]
[377688099,1754491848962,-500.0,0.00030411,60]
[377688100,1754491848984,-500.0,0.00030411,60]
[377688101,1754491848998,-151.0,0.00030411,60]
[377688102,1754491849013,-151.0,0.00030411,60]
[377688103,1754491849029,-151.0,0.00030411,60]
[377688104,1754491849043,-222.58200839,0.00030411,60]
[377688105,1754491849058,-500.0,0.00030411,60]
[377688106,1754491849073,-158.80728961,0.00030411,60]
[377688107,1754491849086,-500.0,0.00030411,60]
[377688108,1754491849098,-500.0,0.00030411,60]
[377688109,1754491849110,-500.0,0.00030411,60]
[377688110,1754491849125,-500.0,0.00030411,60]
[377688111,1754491849139,-151.0,0.00030411,60]
[377688112,1754491849151,-500.0,0.00030411,60]
[377688113,1754491849165,-151.0,0.00030411,60]
[377688114,1754491849179,-516.0,0.00030411,2]
[377688115,1754491849191,-500.0,0.00030411,60]
[377688116,1754491849203,-500.0,0.00030411,60]
[377688117,1754491849215,-500.0,0.00030411,60]
[377688118,1754491849229,-151.0,0.00030411,60]
[377688119,1754491849242,-3841.76,0.000305,7]
[377688120,1754491849255,-1500.0,0.000305,28]
[377688121,1754491849268,-1500.0,0.000305,28]
[377688122,1754491849280,-1500.0,0.000305,28]
[377688123,1754491849292,-1500.0,0.000305,28]
[377688124,1754491849304,-1500.0,0.000305,28]
[377688125,1754491849317,-1500.0,0.000305,28]
[377688126,1754491849329,-1500.0,0.000305,28]
[377688127,1754491849342,-1500.0,0.000305,28]
[377688128,1754491849354,-1500.0,0.000305,28]
[377688129,1754491849366,-1397.545539,0.000305,28]
[377688130,1754491849377,-151.0,0.000305,7]
[377688131,1754491849389,-700.067813,0.000305,7]
[377688132,1754491849402,-700.067813,0.000305,7]
[377688133,1754491849415,-151.0,0.000305,7]
[377688134,1754491849428,-301.770876,0.000305,7]
[377688135,1754491849440,-911.949506,0.000305,7]
[377688136,1754491849452,-911.949506,0.000305,7]
[377688137,1754491849465,-1000.0,0.000305,8]
[377688138,1754491849477,-151.0,0.00030604,7]
[377688139,1754491849489,-151.0,0.00030604,7]
[377688140,1754491849503,-151.0,0.00030608,7]
[377688141,1754491849515,-151.0,0.00030608,7]
[377688142,1754491849530,-151.0,0.00030608,7]
[377688143,1754491849543,-151.0,0.00030608,7]
[377688144,1754491849555,-151.0,0.00030608,7]
[377688145,1754491849567,-248.819274,0.00030608,7]
[377688146,1754491849580,-248.819274,0.00030608,7]
[377688147,1754491849592,-151.0,0.00030657,7]
[377688148,1754491849604,-500.0,0.00030685,60]
[377688149,1754491849617,-500.0,0.00030685,60]
[377688150,1754491849630,-362.12744143,0.00030685,60]
[377688151,1754491849643,-151.0,0.00030685,60]
[377688152,1754491849657,-151.0,0.00030685,60]
[377688153,1754491849670,-151.0,0.00030685,60]
[377688154,1754491849683,-500.0,0.00030685,60]
[377688155,1754491849696,-500.0,0.00030685,60]
[377688156,1754491849708,-500.0,0.00030685,60]
[377688157,1754491849723,-500.0,0.00030685,60]
[377688158,1754491849735,-173.31640018,0.00030685,60]
[377688159,1754491849749,-154.22975394,0.00030685,60]
[377688160,1754491849762,-500.0,0.00030685,60]
[377688161,1754491849774,-238.73498064,0.00030685,60]
[377688162,1754491849787,-516.0,0.00030685,2]
[377688163,1754491849799,-500.0,0.00030685,60]
[377688164,1754491849810,-500.0,0.00030685,60]
[377688165,1754491849823,-500.0,0.00030685,60]
[377688166,1754491849835,-159.06112677,0.00030685,60]
[377688167,1754491849847,-363.6638328,0.0003071,120]
[377688168,1754491849860,-210.159744,0.00030796,3]
[377688169,1754491849872,-210.159744,0.00030808,5]
[377688170,1754491849884,-151.0,0.00030808,7]
[377688171,1754491849897,-151.0,0.00030808,7]
[377688172,1754491849910,-151.0,0.000309,19]
[377688173,1754491849922,-153.0,0.000309,30]
[377688174,1754491849936,-5000.0,0.00030904,5]
[377688175,1754491849948,-800.0,0.00030926,2]
[377688176,1754491849960,-960.0,0.00030957,2]
[377688177,1754491849975,-500.0,0.00030959,60]
[377688178,1754491850129,-500.0,0.00030959,60]
[377688179,1754491850145,-151.0,0.00030959,60]
[377688180,1754491850155,-151.0,0.00030959,60]
[377688181,1754491850165,-151.0,0.00030959,60]
[377688182,1754491850175,-378.41890689,0.00030959,60]
[377688183,1754491850185,-314.01033094,0.00030959,60]
[377688184,1754491850195,-500.0,0.00030959,60]
[377688185,1754491850204,-500.0,0.00030959,60]
[377688186,1754491850214,-500.0,0.00030959,60]
[377688187,1754491850224,-516.0,0.00030959,2]
[377688188,1754491850234,-500.0,0.00030959,60]
[377688189,1754491850244,-500.0,0.00030959,60]
[377688190,1754491850254,-500.0,0.00030959,60]
[377688191,1754491850263,-1000.0,0.00031,8]
[377688192,1754491850274,-36200.74406125,0.00031,2]
[377688193,1754491850283,-200.0,0.00031067,120]
[377688194,1754491850293,-200.0,0.00031075,15]
[377688195,1754491850302,-200.0,0.00031075,15]
[377688196,1754491850312,-300.0,0.00031075,15]
[377688197,1754491850322,-9078.83,0.000311,7]
[377688198,1754491850333,-971.35,0.000311,2]
[377688199,1754491850342,-312.756533,0.000311,7]
[377688200,1754491850351,-312.756533,0.000311,7]
[377688201,1754491850361,-151.0,0.000311,7]
[377688202,1754491850371,-151.0,0.000311,7]
[377688203,1754491850381,-500.0,0.00031233,60]
[377688204,1754491850395,-500.0,0.00031233,60]
[377688205,1754491850404,-253.44695036,0.00031233,60]
[377688206,1754491850414,-264.25611101,0.00031233,60]
[377688207,1754491850425,-282.13434951,0.00031233,60]
[377688208,1754491850434,-500.0,0.00031233,60]
[377688209,1754491850444,-500.0,0.00031233,60]
[377688210,1754491850453,-193.96487504,0.00031233,60]
[377688211,1754491850462,-516.0,0.00031233,2]
[377688212,1754491850471,-500.0,0.00031233,60]
[377688213,1754491850481,-500.0,0.00031233,60]
[377688214,1754491850490,-500.0,0.00031233,60]
[377688215,1754491850499,-800.0,0.00031291,2]
[377688216,1754491850508,-165.47,0.00031318,30]
[377688217,1754491850517,-1660.3,0.00031327,7]
[377688218,1754491850526,-800.0,0.00031346,2]
[377688219,1754491850535,-151.0,0.00031349,2]
[377688220,1754491850544,-250.0,0.00031433,2]
[377688221,1754491850553,-800.0,0.00031443,2]
[377688222,1754491850562,-5500.0,0.00031452,5]
[377688223,1754491850571,-151.0,0.00031479,7]
[377688224,1754491850580,-151.0,0.00031479,7]
[377688225,1754491850590,-461.26544088,0.000315,7]
[377688226,1754491850599,-3798.13,0.000315,2]
[377688227,1754491850607,-1000.0,0.000315,8]
[377688228,1754491850617,-1060.0,0.00031505,2]
[377688229,1754491850627,-500.0,0.00031507,60]
[377688230,1754491850636,-500.0,0.00031507,60]
[377688231,1754491850645,-500.0,0.00031507,60]
[377688232,1754491850654,-500.0,0.00031507,60]
[377688233,1754491850663,-516.0,0.00031507,2]
[377688234,1754491850672,-500.0,0.00031507,2]
[377688235,1754491850681,-471.25198769,0.00031507,60]
[377688236,1754491850691,-238.3329882,0.00031507,60]
[377688237,1754491850700,-500.0,0.00031507,60]
[377688238,1754491850709,-151.0,0.000316,16]
[377688239,1754491850718,-2240.37,0.000316,7]
[377688240,1754491850727,-151.0,0.000317,16]
[377688241,1754491850737,-202.29113895,0.00031739,2]
[377688242,1754491850746,-500.0,0.00031781,60]
[377688243,1754491850755,-500.0,0.00031781,60]
[377688244,1754491850764,-500.0,0.00031781,60]
[377688245,1754491850773,-500.0,0.00031781,60]
[377688246,1754491850782,-516.0,0.00031781,2]
[377688247,1754491850791,-500.0,0.00031781,60]
[377688248,1754491850800,-3841.76,0.000318,7]
[377688249,1754491850810,-210.159744,0.00031882,20]
[377688250,1754491850819,-544444.03,0.000319,2]
[377688251,1754491850828,-887427.45,0.000319,2]
[377688252,1754491850838,-151.0,0.000319,7]
[377688253,1754491850847,-151.0,0.000319,7]
[377688254,1754491850857,-151.0,0.000319,7]
[377688255,1754491850866,-151.0,0.000319,7]
[377688256,1754491850875,-700.067813,0.000319,7]
[377688257,1754491850884,-700.067813,0.000319,7]
[377688258,1754491850893,-151.0,0.000319,7]
[377688259,1754491850902,-151.0,0.000319,7]
[377688260,1754491850911,-700.067813,0.000319,7]
[377688261,1754491850920,-700.067813,0.000319,7]
[377688262,1754491850929,-165.77965,0.000319,7]
[377688263,1754491850938,-151.0,0.000319,7]
[377688264,1754491850947,-151.0,0.000319,7]
[377688265,1754491850956,-151.0,0.000319,7]
[377688266,1754491850967,-151.0,0.000319,7]
[377688267,1754491850976,-151.0,0.000319,7]
[377688268,1754491850985,-151.0,0.000319,7]
[377688269,1754491850994,-911.949506,0.000319,7]
[377688270,1754491851004,-911.949506,0.000319,7]
[377688271,1754491851013,-911.949506,0.000319,7]
[377688272,1754491851022,-911.949506,0.000319,7]
[377688273,1754491851031,-187.614617,0.000319,7]
[377688274,1754491851040,-248.819274,0.000319,7]
[377688275,1754491851049,-248.819274,0.000319,7]
[377688276,1754491851059,-248.819274,0.000319,7]
[377688277,1754491851068,-248.819268,0.000319,7]
[377688278,1754491851077,-152.0,0.0003199,7]
[377688279,1754491851088,-1758.0,0.0003199,7]
[377688280,1754491851098,-1758.0,0.0003199,7]
[377688281,1754491851107,-152.0,0.0003199,7]
[377688282,1754491851116,-152.0,0.0003199,7]
[377688283,1754491851126,-152.0,0.0003199,7]
[377688284,1754491851135,-152.0,0.0003199,7]
[377688285,1754491851144,-152.0,0.0003199,7]
[377688286,1754491851154,-152.0,0.0003199,7]
[377688287,1754491851163,-325.0,0.0003199,7]
[377688288,1754491851172,-152.0,0.0003199,7]
[377688289,1754491851181,-152.0,0.0003199,7]
[377688290,1754491851190,-325.0,0.0003199,7]
[377688291,1754491851199,-152.0,0.0003199,7]
[377688292,1754491851208,-325.0,0.0003199,7]
[377688293,1754491851218,-325.0,0.0003199,7]
[377688294,1754491851227,-325.0,0.0003199,7]
[377688295,1754491851236,-152.0,0.0003199,7]
[377688296,1754491851245,-325.0,0.0003199,7]
[377688297,1754491851254,-152.0,0.0003199,7]
[377688298,1754491851264,-325.0,0.0003199,7]
[377688299,1754491851273,-325.0,0.0003199,7]
[377688300,1754491851282,-152.0,0.0003199,7]
[377688301,1754491851291,-325.0,0.0003199,7]
[377688302,1754491851300,-152.0,0.0003199,7]
[377688303,1754491851310,-325.0,0.0003199,7]
[377688304,1754491851319,-152.0,0.0003199,7]
[377688305,1754491851328,-325.0,0.0003199,7]
[377688306,1754491851338,-152.0,0.0003199,7]
[377688307,1754491851347,-152.0,0.0003199,7]
[377688308,1754491851356,-152.0,0.0003199,7]
[377688309,1754491851365,-325.0,0.0003199,7]
[377688310,1754491851374,-152.0,0.0003199,7]
[377688311,1754491851383,-325.0,0.0003199,7]
[377688312,1754491851392,-152.0,0.0003199,7]
[377688313,1754491851401,-180.89915573,0.0003199,7]
[377688314,1754491851410,-152.0,0.0003199,7]
[377688315,1754491851419,-152.0,0.0003199,7]
[377688316,1754491851429,-152.0,0.0003199,7]
[377688317,1754491851438,-152.0,0.0003199,7]
[377688318,1754491851447,-152.0,0.0003199,7]
[377688319,1754491851456,-152.0,0.0003199,7]
[377688320,1754491851465,-152.0,0.0003199,7]
[377688321,1754491851474,-152.0,0.0003199,7]
[377688322,1754491851483,-152.0,0.0003199,7]
[377688323,1754491851493,-152.0,0.0003199,7]
[377688324,1754491851502,-152.0,0.0003199,7]
[377688325,1754491851511,-152.0,0.0003199,7]
[377688326,1754491851520,-152.0,0.0003199,7]
[377688327,1754491851529,-166.48072362,0.0003199,7]
[377688328,1754491851538,-459.90555018,0.0003199,7]
[377688329,1754491851548,-1758.0,0.0003199,7]
[377688330,1754491851557,-1758.0,0.0003199,7]
[377688331,1754491851566,-1758.0,0.0003199,7]
[377688332,1754491851575,-1758.0,0.0003199,7]
[377688333,1754491851585,-1758.0,0.0003199,7]
[377688334,1754491851594,-1758.0,0.0003199,7]
[377688335,1754491851603,-1758.0,0.0003199,7]
[377688336,1754491851612,-1758.0,0.0003199,7]
[377688337,1754491851622,-1758.0,0.0003199,7]
[377688338,1754491851631,-325.0,0.0003199,7]
[377688339,1754491851640,-1758.0,0.0003199,7]
[377688340,1754491851649,-325.0,0.0003199,7]
[377688341,1754491851658,-1758.0,0.0003199,7]
[377688342,1754491851668,-1758.0,0.0003199,7]
[377688343,1754491851677,-325.0,0.0003199,7]
[377688344,1754491851686,-1249.9990368,0.0003199,7]
[377688345,1754491851695,-325.0,0.0003199,7]
[377688346,1754491851704,-325.0,0.0003199,7]
[377688347,1754491851713,-320.0,0.0003199,7]
[377688348,1754491851723,-1756.879,0.0003199,2]
[377688349,1754491851732,-151.0,0.0003199,7]
[377688350,1754491851741,-155.0,0.0003199,7]
[377688351,1754491851750,-325.0,0.0003199,7]
[377688352,1754491851759,-187.89274369,0.0003199,7]
[377688353,1754491851768,-262.82781049,0.0003199,7]
[377688354,1754491851777,-312.756533,0.0003199,7]
[377688355,1754491851786,-312.756533,0.0003199,7]
[377688356,1754491851795,-151.0,0.0003199,7]
[377688357,1754491851804,-151.0,0.0003199,7]
[377688358,1754491851813,-177.672,0.0003199,7]
[377688359,1754491851823,-151.0,0.0003199,7]
[377688360,1754491851834,-151.0,0.0003199,7]
[377688361,1754491851843,-151.0,0.0003199,7]
[377688362,1754491851851,-151.0,0.0003199,7]
[377688363,1754491851860,-500.0,0.00031999,5]
[377688364,1754491851870,-6000.0,0.00032,5]
[377688365,1754491851879,-2809.0,0.00032,120]
[377688366,1754491851888,-217.3490548,0.00032,120]
[377688367,1754491851898,-461.26544088,0.00032,7]
[377688368,1754491851907,-1000.0,0.00032,8]
[377688369,1754491851916,-905.50866178,0.00032053,2]
[377688370,1754491851925,-500.0,0.00032055,60]
[377688371,1754491851934,-500.0,0.00032055,60]
[377688372,1754491851943,-500.0,0.00032055,60]
[377688373,1754491851952,-500.0,0.00032055,60]
[377688374,1754491851962,-516.0,0.00032055,2]
[377688375,1754491851975,-500.0,0.00032055,60]
[377688376,1754491851984,-200.0,0.0003207,31]
[377688377,1754491851994,-151.0,0.00032086,7]
[377688378,1754491852004,-700.067813,0.00032086,7]
[377688379,1754491852015,-700.067818,0.00032086,7]
[377688380,1754491852024,-911.949506,0.00032086,7]
[377688381,1754491852034,-911.949502,0.00032086,7]
[377688382,1754491852044,-151.0,0.00032108,7]
[377688383,1754491852054,-151.0,0.00032108,7]
[377688384,1754491852064,-151.0,0.00032108,7]
[377688385,1754491852073,-280.951353,0.00032111,7]
[377688386,1754491852083,-172.0,0.00032172,7]
[377688387,1754491852093,-1758.0,0.00032172,7]
[377688388,1754491852103,-172.0,0.00032172,7]
[377688389,1754491852112,-1758.0,0.00032172,7]
[377688390,1754491852121,-160.0,0.00032172,7]
[377688391,1754491852131,-1758.0,0.00032172,7]
[377688392,1754491852141,-166.0,0.00032172,7]
[377688393,1754491852150,-172.0,0.00032172,7]
[377688394,1754491852160,-152.0,0.00032172,7]
[377688395,1754491852170,-160.0,0.00032172,7]
[377688396,1754491852180,-1758.0,0.00032172,7]
[377688397,1754491852190,-174.49030679,0.00032172,7]
[377688398,1754491852200,-152.0,0.00032172,7]
[377688399,1754491852210,-160.0,0.00032172,7]
[377688400,1754491852219,-166.0,0.00032172,7]
[377688401,1754491852229,-1758.0,0.00032172,7]
[377688402,1754491852239,-152.0,0.00032172,7]
[377688403,1754491852249,-160.0,0.00032172,7]
[377688404,1754491852259,-166.0,0.00032172,7]
[377688405,1754491852268,-1758.0,0.00032172,7]
[377688406,1754491852278,-152.0,0.00032172,7]
[377688407,1754491852287,-163.1308334,0.00032172,7]
[377688408,1754491852298,-166.0,0.00032172,7]
[377688409,1754491852307,-1758.0,0.00032172,7]
[377688410,1754491852318,-152.0,0.00032172,7]
[377688411,1754491852327,-1758.0,0.00032172,7]
[377688412,1754491852337,-152.0,0.00032172,7]
[377688413,1754491852347,-1758.0,0.00032172,7]
[377688414,1754491852357,-166.0,0.00032172,7]
[377688415,1754491852366,-152.0,0.00032172,7]
[377688416,1754491852376,-155.0,0.00032172,7]
[377688417,1754491852386,-1758.0,0.00032172,7]
[377688418,1754491852395,-152.0,0.00032172,7]
[377688419,1754491852405,-155.0,0.00032172,7]
[377688420,1754491852415,-1758.0,0.00032172,7]
[377688421,1754491852424,-152.0,0.00032172,7]
[377688422,1754491852532,-155.0,0.00032172,7]